bitfinex/quotes_BTCUSD_20240627
["timestamp","ask_amount","ask_price","bid_price","bid_amount"]
[1719448192281,0.36084503,60911.0,60910.0,0.9660197]
[1719448192459,0.36384503,60911.0,60910.0,0.6376667]
[1719448193718,0.36684503,60911.0,60910.0,0.6376667]
[1719448193899,0.36384503,60911.0,60910.0,0.6376667]
[1719448194460,0.36084503,60911.0,60910.0,0.6376667]
[1719448194631,0.36184503,60911.0,60910.0,0.6456667]
[1719448194836,0.36284503,60911.0,60910.0,0.6536667]
[1719448196902,0.36284503,60911.0,60910.0,1.3103727]
[1719448199927,0.08284187,60911.0,60910.0,1.3103727]
[1719448200347,0.08284187,60911.0,60910.0,0.4894907]
[1719448200545,0.08284187,60911.0,60910.0,0.6536667]
[1719448204317,0.08284187,60911.0,60910.0,1.90436468]
[1719448208072,0.08284187,60911.0,60910.0,1.81106468]
[1719448208698,0.08284187,60911.0,60910.0,1.80106468]
[1719448209035,0.08284187,60911.0,60910.0,1.81106468]
[1719448211978,0.08284187,60911.0,60910.0,1.83406468]
[1719448214237,0.08284187,60911.0,60910.0,2.16241768]
[1719448214499,0.08284187,60911.0,60910.0,2.26241768]
[1719448214854,0.08284187,60911.0,60910.0,2.31164968]
[1719448215284,0.08284187,60911.0,60910.0,2.26241768]
[1719448215668,0.08084187,60911.0,60910.0,2.24641768]
[1719448216059,0.08184187,60911.0,60910.0,2.27141768]
[1719448217791,0.08184187,60911.0,60910.0,2.36471768]
[1719448217980,0.08184187,60911.0,60910.0,1.91006468]
[1719448218176,0.08184187,60911.0,60910.0,1.92006468]
[1719448218801,0.08184187,60911.0,60910.0,0.8153197]
[1719448219003,0.08184187,60911.0,60910.0,0.4869667]
[1719448219207,0.08184187,60911.0,60910.0,0.225]
[1719448219208,0.26864187,60911.0,60910.0,0.225]
[1719448219612,0.76116187,60911.0,60910.0,0.025]
[1719448219808,1.08950887,60911.0,60910.0,0.013]
[1719448220038,0.164179,60909.0,60908.0,0.2777907]
[1719448220503,0.492537,60909.0,60908.0,0.2777907]
[1719448222348,0.493537,60909.0,60908.0,0.0777907]
[1719448222779,0.494537,60909.0,60908.0,0.0777907]
[1719448224186,0.164184,60907.0,60906.0,0.0777907]
[1719448224452,0.663561,60906.0,60905.0,0.009218]
[1719448224653,1.07277687,60906.0,60905.0,0.009218]
[1719448224817,1.43594163,60906.0,60905.0,0.009218]
[1719448225081,1.534295,60906.0,60905.0,0.009218]
[1719448225504,1.43594163,60906.0,60905.0,0.009218]
[1719448225715,1.40115087,60906.0,60905.0,0.009218]
[1719448226343,1.43645249,60906.0,60905.0,0.009218]
[1719448226548,1.44245242,60906.0,60905.0,0.011218]
[1719448226740,1.40715087,60906.0,60905.0,0.011218]
[1719448227365,1.89786385,60906.0,60905.0,0.011218]
[1719448227470,2.05605659,60906.0,60905.0,0.011218]
[1719448227828,1.93318045,60906.0,60905.0,0.011218]
[1719448228097,2.03318045,60906.0,60905.0,0.011218]
[1719448228867,2.15538975,60906.0,60905.0,0.011218]
[1719448229067,2.31772346,60906.0,60905.0,0.011218]
[1719448229644,2.15503493,60906.0,60905.0,0.011218]
[1719448230125,2.15514074,60906.0,60905.0,0.011218]
[1719448230542,2.27785897,60906.0,60905.0,0.011218]
[1719448231470,2.03293144,60906.0,60905.0,0.011218]
[1719448231677,1.80270573,60906.0,60905.0,0.011218]
[1719448231914,1.66948985,60906.0,60905.0,0.011218]
[1719448234513,1.56948985,60906.0,60905.0,0.011218]
[1719448236513,1.07877687,60906.0,60905.0,0.011218]
[1719448236732,0.25102887,60906.0,60905.0,0.231218]
[1719448237132,0.57940287,60906.0,60905.0,0.231218]
[1719448238353,0.57940287,60906.0,60905.0,0.011218]
[1719448238969,1.00817687,60906.0,60905.0,0.011218]
[1719448239129,1.08517687,60906.0,60905.0,0.011218]
[1719448241165,0.80055946,60906.0,60905.0,0.011218]
[1719448241367,0.96474646,60906.0,60905.0,0.011218]
[1719448241702,1.62150646,60906.0,60905.0,0.011218]
[1719448241886,1.54450646,60906.0,60905.0,0.011218]
[1719448242085,1.44410646,60906.0,60905.0,0.211218]
[1719448242901,1.44410646,60906.0,60905.0,0.011218]
[1719448243101,1.44410646,60906.0,60905.0,0.010218]
[1719448243308,1.44410646,60906.0,60905.0,0.009218]
[1719448243627,1.44810646,60906.0,60905.0,0.011218]
[1719448247521,1.48500149,60906.0,60905.0,0.011218]
[1719448248695,1.44810646,60906.0,60905.0,0.011218]
[1719448248898,1.48510171,60906.0,60905.0,0.011218]
[1719448249100,1.44810646,60906.0,60905.0,0.011218]
[1719448249319,1.48510175,60906.0,60905.0,0.011218]
[1719448250321,1.48501647,60906.0,60905.0,0.011218]
[1719448252008,1.484842,60906.0,60905.0,0.011218]
[1719448252271,2.15355498,60906.0,60905.0,0.011218]
[1719448255403,2.11681944,60906.0,60905.0,0.011218]
[1719448255656,2.15370792,60906.0,60905.0,0.011218]
[1719448258541,2.1537583,60906.0,60905.0,0.011218]
[1719448259535,2.18723643,60906.0,60905.0,0.011218]
[1719448260781,2.28063643,60906.0,60905.0,0.011218]
[1719448261294,2.28102401,60906.0,60905.0,0.011218]
[1719448263030,1.68125001,60906.0,60905.0,0.011218]
[1719448263257,0.86227344,60906.0,60905.0,0.011218]
[1719448263816,1.153321,60906.0,60905.0,0.011218]
[1719448264048,1.19057518,60906.0,60905.0,0.011218]
[1719448264255,1.153321,60906.0,60905.0,0.011218]
[1719448264458,0.824947,60906.0,60905.0,0.011218]
[1719448264868,1.153321,60906.0,60905.0,0.011218]
[1719448265074,1.19058274,60906.0,60905.0,0.011218]
[1719448265276,0.86220874,60906.0,60905.0,0.011218]
[1719448265453,0.86220874,60906.0,60905.0,0.231218]
[1719448265595,0.824947,60906.0,60905.0,0.231218]
[1719448266203,0.825787,60906.0,60905.0,0.231218]
[1719448266841,0.6616,60906.0,60905.0,0.6527987]
[1719448267041,0.6616,60906.0,60905.0,0.9811787]
[1719448267242,0.6616,60906.0,60905.0,1.3095587]
[1719448267488,0.6616,60906.0,60905.0,0.9811787]
[1719448269177,0.6616,60906.0,60905.0,1.6379387]
[1719448269387,0.6616,60906.0,60905.0,1.81027768]
[1719448269615,0.6616,60906.0,60905.0,2.13865768]
[1719448270454,0.6576,60906.0,60905.0,2.13865768]
[1719448270866,0.6576,60906.0,60905.0,2.14565768]
[1719448271074,0.6576,60906.0,60905.0,2.14365768]
[1719448271297,0.6576,60906.0,60905.0,2.13665768]
[1719448271507,0.6576,60906.0,60905.0,2.15265768]
[1719448272124,0.6576,60906.0,60905.0,2.14865768]
[1719448272327,0.6576,60906.0,60905.0,2.16265768]
[1719448273628,0.6576,60906.0,60905.0,2.18565768]
[1719448275141,0.6576,60906.0,60905.0,2.81403768]
[1719448275349,0.6576,60906.0,60905.0,3.21403768]
[1719448276641,0.4705,60906.0,60905.0,3.21403768]
[1719448276860,0.00084,60911.0,60910.0,2.6122517]
[1719448277067,0.00084,60911.0,60910.0,3.13079068]
[1719448277269,0.00084,60911.0,60910.0,3.13179068]
[1719448278138,0.00084,60911.0,60910.0,3.14579068]
[1719448278338,0.00084,60911.0,60910.0,3.34579068]
[1719448279385,0.00084,60911.0,60910.0,3.14579068]
[1719448279607,0.00084,60911.0,60910.0,3.34579068]
[1719448279809,0.00084,60911.0,60910.0,3.35979068]
[1719448280233,0.00084,60911.0,60910.0,3.53279068]
[1719448281244,0.00084,60911.0,60910.0,3.33279068]
[1719448281573,0.00084,60911.0,60910.0,3.53279068]
[1719448281932,1e-06,60911.0,60910.0,3.86114368]
[1719448282488,0.00084,60921.0,60920.0,1.7751357]
[1719448282657,0.00084,60921.0,60920.0,2.30477468]
[1719448283998,0.00084,60921.0,60920.0,2.31577468]
[1719448284402,0.00084,60921.0,60920.0,2.32977468]
[1719448285714,0.00084,60921.0,60920.0,2.39550668]
[1719448296698,0.00084,60921.0,60920.0,2.2845219]
[1719448297695,0.00084,60921.0,60920.0,2.30458698]
[1719448301824,0.00084,60921.0,60920.0,2.31288698]
[1719448303426,0.00084,60921.0,60920.0,2.35595105]
[1719448303611,0.00084,60921.0,60920.0,2.31288698]
[1719448304398,0.00084,60921.0,60920.0,2.44925543]
[1719448305500,0.00084,60921.0,60920.0,2.44925106]
[1719448305712,0.00084,60921.0,60920.0,2.31288698]
[1719448305925,0.00084,60921.0,60920.0,2.44925034]
[1719448306337,0.00084,60921.0,60920.0,2.31288698]
[1719448306539,0.00084,60921.0,60920.0,2.44925034]
[1719448308554,0.00084,60921.0,60920.0,2.44924884]
[1719448311867,0.00084,60921.0,60920.0,2.44924854]
[1719448313273,0.00084,60921.0,60920.0,2.87606754]
[1719448313446,0.00084,60921.0,60920.0,3.54956344]
[1719448313786,0.00084,60921.0,60920.0,3.84017918]
[1719448314025,0.00084,60921.0,60920.0,3.93823372]
[1719448314197,0.03365432,60923.0,60922.0,2.5229747]
[1719448314402,0.03365432,60923.0,60922.0,3.39234719]
[1719448314546,0.03365432,60923.0,60922.0,3.48564719]
[1719448314741,0.03365432,60923.0,60922.0,2.91161368]
[1719448314948,0.03365432,60923.0,60922.0,3.48562663]
[1719448315266,0.03365432,60923.0,60922.0,3.41206357]
[1719448315499,0.03365432,60923.0,60922.0,3.52418476]
[1719448315946,0.03365432,60923.0,60922.0,2.46984208]
[1719448316124,0.03365432,60923.0,60922.0,2.51407734]
[1719448316618,0.03365432,60923.0,60922.0,2.56316108]
[1719448316842,0.03365432,60923.0,60922.0,2.57716108]
[1719448317251,0.03365432,60923.0,60922.0,2.52807734]
[1719448317428,0.03365432,60923.0,60922.0,2.57717297]
[1719448318032,0.03365432,60923.0,60922.0,2.52807734]
[1719448318231,0.03365432,60923.0,60922.0,2.60172743]
[1719448318782,0.03365432,60923.0,60922.0,2.52808323]
[1719448319456,0.03365432,60923.0,60922.0,2.89219634]
[1719448320456,0.03365432,60923.0,60922.0,2.99038861]
[1719448320726,0.03365432,60923.0,60922.0,2.96593514]
[1719448320951,0.03365432,60923.0,60922.0,2.39172568]
[1719448321172,0.03365432,60923.0,60922.0,2.46546984]
[1719448321384,0.03365432,60923.0,60922.0,2.89220101]
[1719448321602,0.03365432,60923.0,60922.0,2.69220101]
[1719448321842,0.03365432,60923.0,60922.0,2.82960196]
[1719448322306,0.03365432,60923.0,60922.0,2.09842568]
[1719448324749,0.03365432,60923.0,60922.0,2.19172568]
[1719448325359,0.03365432,60923.0,60922.0,2.24092934]
[1719448325767,0.03365432,60923.0,60922.0,2.09842568]
[1719448325977,0.03365432,60923.0,60922.0,2.19172568]
[1719448328989,0.03365432,60923.0,60922.0,2.24094961]
[1719448329998,0.03365432,60923.0,60922.0,2.19172568]
[1719448330274,0.03365432,60923.0,60922.0,2.24094847]
[1719448330538,0.03365432,60923.0,60922.0,2.19172568]
[1719448330759,0.03365432,60923.0,60922.0,2.24094824]
[1719448331448,0.03365432,60923.0,60922.0,2.26555927]
[1719448332381,0.03365432,60923.0,60922.0,2.19172568]
[1719448332637,0.03365432,60923.0,60922.0,2.24095101]
[1719448333542,0.03365432,60923.0,60922.0,2.24095035]
[1719448333789,0.03365432,60923.0,60922.0,2.19172568]
[1719448334026,0.03365432,60923.0,60922.0,2.1476507]
[1719448334253,0.03365432,60923.0,60922.0,2.19172568]
[1719448335947,0.03365432,60923.0,60922.0,2.24095319]
[1719448336136,0.03365432,60923.0,60922.0,2.19172568]
[1719448338792,0.03365432,60923.0,60922.0,2.24094916]
[1719448340597,0.07392041,60939.0,60936.0,0.01]
[1719448341355,0.23802041,60939.0,60936.0,0.01]
[1719448341856,0.23802041,60939.0,60937.0,0.2]
[1719448342134,0.23802041,60939.0,60938.0,0.2]
[1719448342135,0.1641,60939.0,60938.0,0.2]
[1719448342328,0.1641,60939.0,60937.0,0.2]
[1719448342577,0.23802041,60939.0,60937.0,0.2]
[1719448342855,0.23801854,60939.0,60938.0,0.22]
[1719448343074,0.07391854,60939.0,60938.0,0.2977907]
[1719448343347,0.164096,60940.0,60939.0,0.2977907]
[1719448343568,0.350596,60940.0,60939.0,0.2977907]
[1719448344243,0.1865,60940.0,60939.0,0.2977907]
[1719448344475,0.1865,60940.0,60939.0,0.4618887]
[1719448345220,0.1865,60940.0,60939.0,0.4688887]
[1719448345485,0.1875,60940.0,60939.0,0.4688887]
[1719448351327,0.26140567,60940.0,60939.0,0.0847907]
[1719448351793,0.1875,60940.0,60939.0,0.0847907]
[1719448352049,0.7783269,60940.0,60939.0,0.0847907]
[1719448352268,0.81617189,60940.0,60939.0,0.0847907]
[1719448352542,0.7536956,60940.0,60939.0,0.0847907]
[1719448352746,0.679786,60940.0,60939.0,0.0847907]
[1719448353165,0.679786,60940.0,60939.0,0.06173477]
[1719448353583,0.679786,60940.0,60939.0,0.26173477]
[1719448353802,0.679786,60940.0,60939.0,0.28173477]
[1719448354213,0.351595,60940.0,60939.0,0.28173477]
[1719448355464,0.351595,60940.0,60939.0,0.26173477]
[1719448355870,0.351595,60940.0,60939.0,0.28173477]
[1719448357323,0.1875,60940.0,60939.0,0.28173477]
[1719448362311,0.1875,60940.0,60939.0,0.25867884]
[1719448364178,0.1875,60940.0,60939.0,0.03867884]
[1719448364835,0.71721723,60940.0,60939.0,0.03867884]
[1719448365357,0.82764228,60940.0,60939.0,0.03867884]
[1719448365578,0.71828446,60940.0,60939.0,0.03867884]
[1719448365799,1.37467446,60940.0,60939.0,0.03867884]
[1719448366969,1.37467446,60940.0,60939.0,0.03960284]
[1719448367407,1.70286546,60940.0,60939.0,0.03960284]
[1719448368168,1.70370546,60940.0,60939.0,0.03960284]
[1719448368634,1.70327578,60940.0,60939.0,0.03960284]
[1719448370703,1.70327578,60940.0,60939.0,0.007924]
[1719448371657,0.69629878,60940.0,60935.0,0.01654691]
[1719448371902,0.35589683,60936.0,60935.0,0.01654691]
[1719448372139,0.80880597,60936.0,60935.0,0.01654691]
[1719448372372,0.90729745,60936.0,60935.0,0.01654691]
[1719448372589,0.86921048,60936.0,60935.0,0.01654691]
[1719448373128,0.86920259,60936.0,60935.0,0.02354691]
[1719448373594,0.86920259,60936.0,60935.0,0.02054691]
[1719448373845,0.770719,60936.0,60935.0,0.03254691]
[1719448374067,0.677419,60936.0,60935.0,0.23254691]
[1719448374284,0.770719,60936.0,60935.0,0.23254691]
[1719448374494,0.770719,60936.0,60935.0,0.03254691]
[1719448374911,0.770719,60936.0,60935.0,0.23254691]
[1719448375116,0.770719,60936.0,60935.0,0.03254691]
[1719448376356,0.84456538,60936.0,60935.0,0.03254691]
[1719448376567,0.770719,60936.0,60935.0,0.03254691]
[1719448376775,0.75126389,60936.0,60935.0,0.23254691]
[1719448376981,0.84456389,60936.0,60935.0,0.25254691]
[1719448378211,0.84456113,60936.0,60935.0,0.25254691]
[1719448378851,0.75126113,60936.0,60935.0,0.25254691]
[1719448379054,0.84456113,60936.0,60935.0,0.25254691]
[1719448379471,0.75125789,60936.0,60935.0,0.25254691]
[1719448379690,0.51634489,60936.0,60935.0,0.25254691]
[1719448380099,0.51634489,60936.0,60935.0,0.23254691]
[1719448380517,0.51634489,60936.0,60935.0,0.25254691]
[1719448380518,0.52657338,60936.0,60935.0,0.25254691]
[1719448380733,0.43327338,60936.0,60935.0,0.25254691]
[1719448380948,0.43327338,60936.0,60935.0,0.22949098]
[1719448380949,0.1851,60936.0,60935.0,0.22949098]
[1719448381175,0.19532849,60936.0,60935.0,0.22949098]
[1719448381410,0.19532821,60936.0,60935.0,0.22949098]
[1719448382718,0.19532821,60936.0,60935.0,0.20949098]
[1719448383393,0.19532821,60936.0,60935.0,0.22949098]
[1719448383604,0.19532821,60936.0,60935.0,0.20949098]
[1719448383824,0.1851,60936.0,60935.0,0.22949098]
[1719448384035,0.19532795,60936.0,60935.0,0.22949098]
[1719448384469,0.19532795,60936.0,60935.0,0.00949098]
[1719448384696,0.19532795,60936.0,60935.0,0.22949098]
[1719448385748,0.257402,60938.0,60937.0,0.2]
[1719448385961,0.164104,60937.0,60935.0,0.20949098]
[1719448386188,0.164104,60937.0,60936.0,0.2]
[1719448386823,0.164104,60937.0,60936.0,0.22]
[1719448387082,0.257401,60938.0,60937.0,0.2]
[1719448388128,0.258401,60938.0,60937.0,0.209]
[1719448390146,0.258401,60938.0,60937.0,0.211]
[1719448390381,0.258401,60938.0,60937.0,0.18794407]
[1719448391068,0.0943,60938.0,60937.0,0.20794407]
[1719448391274,0.0943,60938.0,60937.0,1.20786107]
[1719448391275,0.001,60938.0,60937.0,1.20786107]
[1719448391713,0.001,60938.0,60937.0,1.21786107]
[1719448392566,0.001,60938.0,60937.0,1.38020005]
[1719448392986,0.65723,60940.0,60939.0,1.02643607]
[1719448393198,0.65723,60940.0,60939.0,1.13013607]
[1719448394492,0.65723,60940.0,60939.0,1.13713607]
[1719448395467,0.65823,60940.0,60939.0,1.15013607]
[1719448396403,0.84743,60940.0,60939.0,0.71823907]
[1719448396883,0.76313,60940.0,60939.0,0.71823907]
[1719448397085,0.65823,60940.0,60939.0,0.71823907]
[1719448398452,0.65823,60940.0,60939.0,1.04643607]
[1719448398895,0.65823,60940.0,60939.0,0.71823907]
[1719448399689,0.65823,60940.0,60939.0,0.69518314]
[1719448400131,0.65823,60940.0,60939.0,1.02338014]
[1719448400331,0.65823,60940.0,60939.0,0.79668314]
[1719448400669,0.65823,60940.0,60939.0,1.12488014]
[1719448400995,0.65823,60940.0,60939.0,0.79668314]
[1719448401966,0.65823,60940.0,60939.0,0.69518314]
[1719448404480,0.65823,60940.0,60939.0,1.02338014]
[1719448405872,0.65823,60940.0,60939.0,0.69518314]
[1719448406314,0.65823,60940.0,60939.0,1.02338014]
[1719448407349,0.65823,60940.0,60939.0,0.69518314]
[1719448408199,0.65823,60940.0,60939.0,1.02338014]
[1719448409052,0.65823,60940.0,60939.0,0.55414107]
[1719448409265,0.65823,60940.0,60939.0,0.71823907]
[1719448410315,0.73573,60940.0,60939.0,0.02]
[1719448410541,0.93353,60940.0,60939.0,0.02]
[1719448410765,1.425816,60940.0,60939.0,0.02]
[1719448415342,1.425816,60940.0,60939.0,0.20594407]
[1719448416642,1.425816,60940.0,60939.0,0.02]
[1719448416848,1.425816,60940.0,60939.0,0.20594407]
[1719448417743,1.004325,60940.0,60939.0,0.22594407]
[1719448418373,1.004325,60940.0,60939.0,0.20402317]
[1719448418576,0.926825,60940.0,60939.0,0.20402317]
[1719448419278,0.926825,60940.0,60938.0,0.18402317]
[1719448419279,0.164098,60939.0,60938.0,0.18402317]
[1719448420567,0.926826,60940.0,60938.0,0.18402317]
[1719448420954,0.926826,60940.0,60939.0,0.18402317]
[1719448420955,0.925826,60940.0,60939.0,0.18402317]
[1719448421394,0.925826,60940.0,60939.0,0.20402317]
[1719448421603,0.925826,60940.0,60939.0,0.18402317]
[1719448422248,0.927826,60940.0,60939.0,0.19002317]
[1719448422676,0.927826,60940.0,60939.0,0.21002317]
[1719448422887,0.65923,60940.0,60939.0,0.21002317]
[1719448423106,0.65823,60940.0,60939.0,0.20402317]
[1719448423323,0.65823,60940.0,60939.0,0.36812117]
[1719448424167,0.65723,60940.0,60939.0,0.36812117]
[1719448424374,0.65823,60940.0,60939.0,0.37512117]
[1719448425002,0.65723,60940.0,60939.0,0.36912117]
[1719448425240,0.65823,60940.0,60939.0,0.37612117]
[1719448426354,0.65823,60940.0,60939.0,0.70431817]
[1719448427743,0.65823,60940.0,60939.0,0.68239727]
[1719448431814,0.65823,60940.0,60939.0,1.01059427]
[1719448435445,0.65823,60940.0,60939.0,1.61553025]
[1719448435675,0.65823,60940.0,60939.0,1.79753025]
[1719448435892,0.65823,60940.0,60939.0,2.14872725]
[1719448436321,0.65723,60940.0,60939.0,2.14072725]
[1719448436555,0.65723,60940.0,60939.0,2.14165125]
[1719448436781,0.65823,60940.0,60939.0,2.14865125]
[1719448437005,0.65823,60940.0,60939.0,2.12673035]
[1719448437274,0.65823,60940.0,60939.0,2.12573035]
[1719448437480,0.65923,60940.0,60939.0,2.13273035]
[1719448438741,0.65823,60940.0,60939.0,2.12673035]
[1719448438939,0.65823,60940.0,60939.0,2.14073035]
[1719448439142,0.65923,60940.0,60939.0,2.14073035]
[1719448443929,0.65923,60940.0,60939.0,2.86892735]
[1719448444357,0.65923,60940.0,60939.0,2.54073035]
[1719448445653,0.65923,60940.0,60939.0,3.16761735]
[1719448445866,0.60029755,60940.0,60939.0,3.16761735]
[1719448446497,0.60029755,60940.0,60939.0,3.14569645]
[1719448446937,0.59929755,60940.0,60939.0,3.13169645]
[1719448447142,0.59829755,60940.0,60939.0,3.12469645]
[1719448447359,0.59829755,60940.0,60939.0,3.23199645]
[1719448447360,0.59929755,60940.0,60939.0,3.23199645]
[1719448447983,0.59929755,60940.0,60939.0,3.24599645]
[1719448447984,0.60029755,60940.0,60939.0,3.24599645]
[1719448448428,0.60029755,60940.0,60939.0,3.41899645]
[1719448448651,0.60029755,60940.0,60939.0,3.74719345]
[1719448448652,0.39050167,60940.0,60939.0,3.74719345]
[1719448448890,0.00839,60967.0,60966.0,0.95838747]
[1719448449173,0.00839,60967.0,60966.0,1.28643847]
[1719448449402,0.00839,60967.0,60966.0,1.29643847]
[1719448449616,0.00839,60967.0,60966.0,1.45877745]
[1719448450511,0.00839,60967.0,60966.0,1.44877745]
[1719448451351,0.00839,60967.0,60966.0,1.45877745]
[1719448451560,0.00839,60967.0,60966.0,1.45977745]
[1719448452463,0.00839,60967.0,60966.0,1.46677745]
[1719448452913,0.00839,60967.0,60966.0,1.47677745]
[1719448453118,0.00839,60967.0,60966.0,1.46677745]
[1719448453560,0.00839,60967.0,60966.0,1.47677745]
[1719448454428,0.00839,60967.0,60966.0,1.46677745]
[1719448455075,0.00839,60967.0,60966.0,1.47677745]
[1719448455285,0.00839,60967.0,60966.0,1.65367745]
[1719448455543,0.00839,60967.0,60966.0,1.98172845]
[1719448455755,0.00839,60967.0,60966.0,2.10472845]
[1719448455979,0.00839,60967.0,60966.0,2.61972339]
[1719448456185,0.00839,60967.0,60966.0,3.29141339]
[1719448456393,0.00839,60967.0,60966.0,3.61946439]
[1719448456608,0.00839,60967.0,60966.0,3.74566439]
[1719448457728,0.00839,60967.0,60966.0,3.73466439]
[1719448458365,0.00839,60967.0,60966.0,3.74166439]
[1719448458571,0.00839,60967.0,60966.0,3.75566439]
[1719448458782,0.00839,60967.0,60966.0,3.74166439]
[1719448458990,0.00839,60967.0,60966.0,3.72766439]
[1719448459203,0.00839,60967.0,60966.0,3.74166439]
[1719448459460,0.00839,60967.0,60966.0,2.60036239]
[1719448459667,0.00839,60967.0,60966.0,2.57736239]
[1719448459908,0.00839,60967.0,60966.0,2.67066239]
[1719448460135,0.00839,60967.0,60966.0,2.87066239]
[1719448460605,0.00839,60967.0,60966.0,2.65666239]
[1719448460834,0.00839,60967.0,60966.0,2.67066239]
[1719448461065,0.00839,60967.0,60966.0,2.69366239]
[1719448461295,0.00839,60967.0,60966.0,2.67966239]
[1719448461532,0.00839,60967.0,60966.0,2.66566239]
[1719448461773,0.00839,60967.0,60966.0,2.69366239]
[1719448463360,0.00839,60967.0,60966.0,2.39497239]
[1719448463605,0.00839,60967.0,60966.0,1.79672139]
[1719448463809,0.00839,60967.0,60966.0,1.86702139]
[1719448464703,0.00839,60967.0,60966.0,1.85302139]
[1719448465124,0.00839,60967.0,60966.0,1.82996533]
[1719448465329,0.00839,60967.0,60966.0,1.84396533]
[1719448465519,0.00839,60967.0,60966.0,1.82996533]
[1719448466880,0.00839,60967.0,60966.0,2.58101633]
[1719448467081,0.00839,60967.0,60966.0,2.38101633]
[1719448467280,0.00839,60967.0,60966.0,2.58101633]
[1719448467530,0.00839,60967.0,60966.0,2.39501633]
[1719448467937,0.00839,60967.0,60966.0,2.38101633]
[1719448468142,0.00839,60967.0,60966.0,3.16675733]
[1719448468453,0.00839,60967.0,60966.0,2.74340633]
[1719448468669,0.00839,60967.0,60966.0,3.04370633]
[1719448469089,0.00839,60967.0,60966.0,3.37175733]
[1719448469297,0.00839,60967.0,60966.0,3.37268133]
[1719448469499,0.00839,60967.0,60966.0,2.75133033]
[1719448469706,0.00839,60967.0,60966.0,2.84463033]
[1719448470709,0.00839,60967.0,60966.0,2.75133033]
[1719448470869,0.00839,60967.0,60966.0,1.95158933]
[1719448471067,0.00839,60967.0,60966.0,1.77458933]
[1719448472129,0.00839,60967.0,60966.0,2.10264033]
[1719448472709,0.00839,60967.0,60966.0,2.40133033]
[1719448472909,0.00839,60967.0,60966.0,2.63419033]
[1719448473198,0.00839,60967.0,60966.0,2.80719033]
[1719448473349,0.00839,60967.0,60966.0,2.98489033]
[1719448473753,0.00839,60967.0,60966.0,2.97089033]
[1719448473959,0.3,61008.0,60988.0,0.09214835]
[1719448474785,0.54005317,61005.0,60988.0,0.06909229]
[1719448474956,0.54005317,61005.0,60986.0,0.163971]
[1719448474957,0.02,60995.0,60986.0,0.23306329]
[1719448475154,0.163962,60990.0,60986.0,0.06909229]
[1719448476381,0.163962,60990.0,60988.0,0.06909229]
[1719448476811,1.8265,60989.0,60988.0,0.06909229]
[1719448477212,1.8265,60989.0,60988.0,0.07209229]
[1719448477458,1.8265,60989.0,60988.0,0.23605829]
[1719448477664,1.8265,60989.0,60988.0,0.23305829]
[1719448478068,1.8265,60989.0,60988.0,0.23805829]
[1719448478271,1.8265,60989.0,60988.0,0.168966]
[1719448478422,1.8265,60989.0,60988.0,0.169966]
[1719448478842,1.8265,60989.0,60988.0,0.23905829]
[1719448480284,1.8265,60989.0,60988.0,0.89492429]
[1719448480570,1.8265,60989.0,60988.0,1.40519627]
[1719448480571,1.6437,60989.0,60988.0,1.40519627]
[1719448481267,1.6437,60989.0,60988.0,1.85612927]
[1719448481747,1.6437,60989.0,60988.0,1.85112927]
[1719448481952,1.6437,60989.0,60988.0,1.85612927]
[1719448482170,1.6437,60989.0,60988.0,1.85812927]
[1719448482446,1.6437,60989.0,60988.0,2.05812927]
[1719448482706,1.6437,60989.0,60988.0,3.48140123]
[1719448482964,1.6437,60989.0,60988.0,3.74907037]
[1719448483152,1.6437,60989.0,60988.0,4.25392309]
[1719448483369,1.6437,60989.0,60988.0,3.74907037]
[1719448483581,1.6437,60989.0,60988.0,3.79176047]
[1719448483797,1.6437,60989.0,60988.0,3.75707037]
[1719448484267,1.6437,60989.0,60988.0,3.74307037]
[1719448484477,1.6437,60989.0,60988.0,3.97577037]
[1719448484691,1.6437,60989.0,60988.0,3.98977037]
[1719448484948,1.6437,60989.0,60988.0,3.98777037]
[1719448485165,1.6437,60989.0,60988.0,3.97377037]
[1719448485422,1.6437,60989.0,60988.0,3.98777037]
[1719448485669,1.6437,60989.0,60988.0,3.97377037]
[1719448485879,1.6437,60989.0,60988.0,3.98775446]
[1719448486100,1.6437,60989.0,60988.0,3.85156123]
[1719448486322,1.6437,60989.0,60988.0,3.98775284]
[1719448486553,1.6437,60989.0,60988.0,4.00175284]
[1719448487601,1.6437,60989.0,60988.0,4.05042392]
[1719448487843,1.33595964,60989.0,60988.0,4.3653989]
[1719448488105,1.33595964,60989.0,60988.0,4.58501922]
[1719448488339,1.19014312,60989.0,60988.0,4.55700964]
[1719448488580,1.17311618,60989.0,60988.0,4.57100964]
[1719448488818,1.17311618,60989.0,60988.0,4.5513425]
[1719448489068,1.17311618,60989.0,60988.0,4.57095325]
[1719448489307,1.17311618,60989.0,60988.0,4.5513425]
[1719448489731,1.17311618,60989.0,60988.0,4.5653425]
[1719448489944,1.17311618,60989.0,60988.0,4.58495255]
[1719448490489,1.14517635,60989.0,60988.0,4.5653425]
[1719448491153,1.14517635,60989.0,60988.0,4.3653425]
[1719448491816,1.14517635,60989.0,60988.0,3.86556123]
[1719448492072,1.14517635,60989.0,60988.0,4.36533599]
[1719448494369,1.14517635,60989.0,60988.0,4.51117912]
[1719448494584,1.14517635,60989.0,60988.0,4.36533599]
[1719448495000,1.14517635,60989.0,60988.0,4.36533514]
[1719448495443,1.14517635,60989.0,60988.0,4.2291692]
[1719448495705,1.14517635,60989.0,60988.0,4.36533726]
[1719448496634,1.04396635,60989.0,60988.0,4.36533726]
[1719448497315,1.04396635,60989.0,60988.0,4.46256027]
[1719448497538,1.04396635,60989.0,60988.0,4.07464994]
[1719448497792,1.04396635,60989.0,60988.0,4.20560817]
[1719448498037,1.04396635,60989.0,60988.0,3.86556123]
[1719448498267,1.04396635,60989.0,60988.0,4.07466966]
[1719448498544,1.04396635,60989.0,60988.0,4.00174812]
[1719448499443,1.04396635,60989.0,60988.0,3.97374812]
[1719448499679,1.04396635,60989.0,60988.0,3.98774812]
[1719448499900,1.04396635,60989.0,60988.0,4.00174812]
[1719448500141,1.04396635,60989.0,60988.0,3.98774812]
[1719448500394,0.00838,60999.0,60998.0,2.29609729]
[1719448500696,0.00839,61001.0,61000.0,1.50876229]
[1719448500928,0.00839,61001.0,61000.0,2.44983727]
[1719448501175,0.00839,61001.0,61000.0,2.31548027]
[1719448501723,0.00839,61001.0,61000.0,2.11548027]
[1719448502034,0.00839,61001.0,61000.0,2.31548027]
[1719448502281,0.00839,61001.0,61000.0,3.21583827]